Cogmind - Beta 13 @@@ ROGUE MODE // 2024.03.07 @ 22:22:11 Player: Jezoensis Result: Self-destructed Performance ------------- Evolutions (2) 1000 Regions Visited (6) 1200 Robots Destroyed (91) 455 Value Destroyed (3032) 3032 Prototype IDs (10) 200 Alien Tech Used (0) 0 Bonus (495) 495 TOTAL SCORE: 6382 Bonus ------- High Alert Combat Kills 169 Follower Combat Kills 174 Entered Garrisons 200 Friendly Fire -48 Cogmind --------- Core Integrity 349/550 Matter 279/300 Energy 280/280 System Corruption 4% Temperature Cool (0) Movement Rolling (115) Ox1 Location -8/Garrison Parts ------- > --- POWER (1) -------- Cooled Ion Engine > --- PROPULSION (3) --- Armored Treads Compact Wheel Compact Wheel > --- UTILITY (4) ------ Improved Heat Sink Improved Heat Sink High-capacity Storage Unit Improved Signal Interpreter > --- WEAPON (3) ------- Heavy Assault Rifle Chainsword > --- INVENTORY (20) --- Light Treads Light Treads Light Treads Compact Wheel Large Storage Unit Large Matter Pod (0) Structural Scanner Visual Processing Unit Seismic Detector Melee Analysis Suite Transmission Jammer Light Armor Plating Hardlight Generator Heavy Missile Launcher Improved Datajack Peak State ------------ > --- POWER ------------ Cooled Ion Engine > --- PROPULSION ------- Light Treads Armored Treads Compact Wheel > --- UTILITY ---------- Improved Heat Sink High-capacity Storage Unit Transmission Jammer Hardened Medium Armor Plating > --- WEAPON ----------- Pulse Rifle Pulse Rifle Heavy Missile Launcher > --- INVENTORY -------- Cooled Ion Engine Light Treads Wheel Compact Wheel Improved Heat Sink Large Storage Unit Large Matter Pod Structural Scanner Visual Processing Unit Improved Sensor Array Improved Signal Interpreter Seismic Detector Salvage Targeting Computer Melee Analysis Suite Hardlight Generator Heavy Missile Launcher Improved Datajack Chainsword [Rating: 33] Favorites ----------- Power Cooled Ion Engine Engine Cooled Ion Engine Propulsion Wheel Treads Light Treads Leg Aluminum Leg Wheel Wheel Utility High-capacity Storage Unit Device Structural Scanner Storage High-capacity Storage Unit Processor Improved Signal Interpreter Hackware System Shield Protection Hardened Medium Armor Plating Weapon Pulse Rifle Energy Gun Pulse Rifle Energy Cannon Light EM Pulse Cannon Ballistic Gun Autogun Ballistic Cannon Light Cannon Launcher Heavy Missile Launcher Special Weapon Mining Laser Slashing Weapon Chainsword Build | -11 -10 -10 -9 -9 -8 -8 ------- Run | Yrd Mat Min Mat Min Mat Gar Slots Evolved 4 | . . . 2 . 2 . Power . | . . . . . . . Propulsion 1 | . . . 1 . . . Utility 2 | . . . 1 . 1 . Weapon 1 | . . . . . 1 . Parts Attached 174 | 7 20 13 38 5 38 53 Power 10 | 1 2 1 2 1 1 2 Engine 10 | 1 2 1 2 1 1 2 Core . | . . . . . . . Reactor . | . . . . . . . Propulsion 28 | 2 1 3 6 1 10 5 Treads 10 | . . 1 2 1 4 2 Leg 2 | . . . 2 . . . Wheel 16 | 2 1 2 2 . 6 3 Hover . | . . . . . . . Flight . | . . . . . . . Utility 72 | 2 7 2 12 2 20 27 Device 56 | 1 5 2 11 2 15 20 Storage 4 | 1 2 . . . 1 . Processor 3 | . . . . . 1 2 Hackware 1 | . . . . . 1 . Protection 8 | . . . 1 . 2 5 Artifact . | . . . . . . . Weapon 64 | 2 10 7 18 1 7 19 Energy Gun 15 | . . . 5 . 4 6 Energy Cannon 7 | . 5 2 . . . . Ballistic Gun 22 | 2 5 3 6 1 2 3 Ballistic Cannon 1 | . . . 1 . . . Launcher 13 | . . 2 5 . . 6 Special Weapon 1 | . . . 1 . . . Impact Weapon . | . . . . . . . Slashing Weapon 5 | . . . . . 1 4 Piercing Weapon . | . . . . . . . Special Melee Weapon . | . . . . . . . Unidentified Prototypes 3 | . . . 2 . 1 . Parts Lost 26 | . . 4 6 1 2 13 Power 1 | . . . . . . 1 Propulsion 7 | . . 2 3 . 1 1 Utility 7 | . . . 1 1 . 5 Weapon 11 | . . 2 2 . 1 6 Highest Loss Streak 4 | . . 4 4 1 1 4 To Critical Strikes . | . . . . . . . Average Slot Usage (%) 97 | . 97 81 96 98 99 98 Engine 10 | . 14 10 11 11 9 8 Treads 8 | . . 5 11 8 9 9 Wheel 19 | . 28 18 18 22 17 16 Device 14 | . 11 10 20 20 10 13 Storage 10 | . 14 14 11 11 9 9 Processor 5 | . . . . . 8 9 Hackware 1 | . . . . . 6 . Protection 1 | . . . . . . 3 Energy Gun 10 | . . . 8 11 10 17 Ballistic Gun 11 | . 23 17 11 11 15 2 Launcher 1 | . . 1 . . . 3 Slashing Weapon 1 | . . . . . 1 2 Naked Turns . | . . . . . . . Heaviest Build 74 | 13 34 31 36 36 66 74 Greatest Support 40 | 26 26 20 20 20 32 40 Greatest Overweight (x) 4 | . 1 3 3 1 2 4 Average Overweight (x) 1 | . . . 1 1 1 1 Largest Inventory Capacity 20 | 8 15 15 15 15 20 20 Average Capacity 16 | 6 10 15 15 15 19 20 Most Carried 20 | 4 10 11 15 15 20 20 Average Carried 14 | 2 8 9 13 14 18 17 Final Capacity 20 | 8 15 15 15 15 20 20 Final Carried 20 | 4 10 11 13 15 20 15 Class Distribution -------------------- 34% | Mutant 28% | Scavenger-Mutant 14% | Gunner 9% | Scavenger-Skirmisher 7% | Scavenger-Gunner 4% | Skirmisher Dominant Class ---------------- Mutant | -10/Materials Mutant | -10/Mines Scavenger-Mutant | -9/Materials Scavenger-Mutant | -9/Mines Gunner | -8/Materials Mutant | -8/Garrison Resources | -11 -10 -10 -9 -9 -8 -8 ----------- Run | Yrd Mat Min Mat Min Mat Gar Matter Collected 3577 | 256 356 244 769 135 732 1085 Remotely . | . . . . . . . Salvage Created 3287 | 53 396 45 819 149 952 873 Parts 171 | 6 16 2 50 3 55 39 Haulers Intercepted 5 | . . . 3 . 2 . Recyclers Shooed 3 | . 2 . 1 . . . Parts Field Recycled . | . . . . . . . Retrieved Matter . | . . . . . . . Parts Self-Destructed . | . . . . . . . Prevented . | . . . . . . . Kills | -11 -10 -10 -9 -9 -8 -8 ------- Run | Yrd Mat Min Mat Min Mat Gar Combat Hostiles Destroyed 104 | . 6 2 21 3 19 53 Melee 1 | . . . . . . 1 Guns 54 | . . 1 13 3 19 18 Cannons 6 | . 5 . 1 . . . AOE 42 | . . 1 7 . . 34 Classes Destroyed 15 | 1 3 2 5 . 2 2 Worker 1 | . . . 1 . . . Builder 3 | . 1 . 1 . 1 . Tunneler 2 | 2 . . . . . . Hauler 5 | . . . 3 . 2 . Recycler 2 | . 1 . 1 . . . Watcher 3 | . . . 3 . . . Swarmer 18 | . . . 6 . 2 10 Grunt 42 | . 6 . 12 2 11 11 Duelist 1 | . . . . . . 1 Sentry 9 | . . . 3 1 3 2 Demolisher 1 | . . 1 . . . . Specialist 2 | . . . . . 2 . Programmer 1 | . . . . . . 1 Heavy 1 | . . . . . 1 . Assembled 29 | . . 1 . . . 28 Best Kill Streak 27 | 1 2 2 15 2 3 27 Combat Bots Only 27 | . 2 2 10 2 3 27 Max Kills in Single Turn 4 | 1 1 1 3 1 2 4 Gunslinging 1 | . . . 1 . 1 1 Exploded 4 | . . 1 3 . . 4 Melee 1 | . . . . . . 1 Uniques/NPCs Destroyed . | . . . . . . . Combat | -11 -10 -10 -9 -9 -8 -8 -------- Run | Yrd Mat Min Mat Min Mat Gar Hostile Shots Fired 377 | . 25 23 113 19 82 115 Missed 126 | . 9 8 40 6 31 32 Damage Taken 4124 | . 197 485 882 171 881 1508 Core 530 | . 33 55 172 69 45 156 Absorbed by Shields 68 | . . . . . . 68 Core Remaining (%) 67 | 100 . 64 . 39 . . Volleys Fired 264 | 2 30 7 61 13 53 98 Largest 3 | 2 2 2 2 2 3 3 Hottest 191 | 40 112 112 100 79 149 191 Shots Fired 524 | 4 47 13 112 26 153 169 Gun 441 | 4 22 6 96 26 153 134 Cannon 34 | . 25 4 5 . . . Launcher 48 | . . 3 10 . . 35 Special 1 | . . . 1 . . . Kinetic 237 | 4 22 6 60 13 93 39 Thermal 210 | . . . 42 13 60 95 Explosive 48 | . . 3 10 . . 35 Electromagnetic 29 | . 25 4 . . . . Robot Hit Streak 44 | 1 9 3 9 11 44 18 Robot Miss Streak 6 | 2 4 1 4 1 3 6 Penetration Max . | . . . . . . . Secondary Targets 10 | . . . 3 . 3 4 Max Gunslinging Chain 1 | . . . 1 . 1 1 Shots Hit Robots 333 | 1 32 8 72 21 115 84 Core Hits 190 | 2 9 7 43 7 44 78 Critical Kills 2 | . . . . . 1 1 Critical Parts Destroyed 1 | . . . . . 1 . Critical Strikes 10 | . 1 1 2 . 4 2 Burn 5 | . . . 2 . 2 1 Destroy 3 | . . . . . 2 1 Corrupt 2 | . 1 1 . . . . Melee Attacks 34 | . . . . . 1 33 Impact . | . . . . . . . Slashing 34 | . . . . . 1 33 Piercing . | . . . . . . . Sneak Attacks 1 | . . . . . . 1 Combat Hostiles 1 | . . . . . . 1 Follow-up Attacks . | . . . . . . . Damage Inflicted 9199 | 43 626 237 1886 332 1993 4082 Guns 4734 | 43 169 42 935 332 1993 1220 Cannons 602 | . 457 58 87 . . . Explosions 3679 | . . 137 864 . . 2678 Melee 184 | . . . . . . 184 Ramming . | . . . . . . . Kinetic 2539 | 43 169 42 674 164 1081 366 Thermal 2282 | . . . 348 168 912 854 Explosive 3679 | . . 137 864 . . 2678 Electromagnetic 515 | . 457 58 . . . . Impact . | . . . . . . . Slashing 184 | . . . . . . 184 Piercing . | . . . . . . . Highest Corruption 4 | . . . . . . 4 Average Corruption 3 | . . . . . . 3 Corruption Purged . | . . . . . . . Corruption Blocked . | . . . . . . . Effects 17 | . . . . . . 17 Message Errors 3 | . . . . . . 3 Matter Fused 3 | . . . . . . 3 Heat Flow Errors 2 | . . . . . . 2 Energy Discharges 2 | . . . . . . 2 Data Loss (minor) 1 | . . . . . . 1 Data Loss (major) 3 | . . . . . . 3 Misfires 1 | . . . . . . 1 Weapon Failures 2 | . . . . . . 2 Overload Shots . | . . . . . . . Overflow Damage 265 | . . . 32 . . 233 Projectiles . | . . . . . . . Explosions 236 | . . . 32 . . 204 Melee 29 | . . . . . . 29 Knockbacks . | . . . . . . . Impact . | . . . . . . . Kinetic . | . . . . . . . Secondary . | . . . . . . . Self-Inflicted Damage 260 | . . . 5 . . 255 Shots 9 | . . . 1 . . 8 Rammed . | . . . . . . . Targets Rammed . | . . . . . . . Kicked . | . . . . . . . Crushed . | . . . . . . . Highest Temperature 312 | . 152 21 64 161 312 259 Average Temperature 54 | . 58 14 13 61 81 49 Received Heat Transfer 1247 | . 108 20 423 99 276 321 Effects 2 | . . . . . 2 . Interference 2 | . . . . . 2 . Siege Activations . | . . . . . . . Robots Corrupted 1 | . 1 . . . . . Combat Hostiles 1 | . 1 . . . . . Parts Fried 4 | . 4 . . . . . Impact Corruptions . | . . . . . . . Robots Melted . | . . . . . . . Combat Hostiles . | . . . . . . . Parts Melted 7 | . . . . 2 2 3 Heat Transferred 5365 | . . . 999 407 2035 1924 Parts Sabotaged . | . . . . . . . Parts Stolen . | . . . . . . . Parts Stripped . | . . . . . . . Power Chain Reactions . | . . . . . . . Alert | -11 -10 -10 -9 -9 -8 -8 ------- Run | Yrd Mat Min Mat Min Mat Gar Peak Influence 1122 | 10 205 26 503 255 437 1122 Initial 195 | . 6 19 5 195 99 48 Average 353 | 2 94 16 291 247 211 679 Maximum Alert Level 4 | . 1 . 2 1 2 4 Low Security (%) 38 | 100 95 100 26 4 49 8 Level 1 29 | . 4 . 53 95 45 10 Level 2 13 | . . . 20 . 5 28 Level 3 15 | . . . . . . 46 Level 4 2 | . . . . . . 6 Level 5 . | . . . . . . . High Security . | . . . . . . . Max Security . | . . . . . . . Squads Dispatched 10 | . 2 . 3 . 5 . Investigation 5 | . 1 . 1 . 3 . Extermination . | . . . . . . . Reinforcement 5 | . 1 . 2 . 2 . Assault . | . . . . . . . Garrison . | . . . . . . . Intercept . | . . . . . . . Searches Triggered . | . . . . . . . Construction Impeded . | . . . . . . . Haulers Reinforced . | . . . . . . . Active Scanning Responses . | . . . . . . . Cargo Convoy Interrupts . | . . . . . . . Stealth | -11 -10 -10 -9 -9 -8 -8 --------- Run | Yrd Mat Min Mat Min Mat Gar Distress Signals 5 | . . . 4 . 1 . Communications Jammed 12 | . . . . . 12 . Distress Signals 8 | . . . . . 8 . Times Spotted 155 | . 14 23 32 4 30 52 Peak Tracking Total 19 | . 2 19 6 2 3 5 Tactical Retreats 7 | . . 1 1 . . 5 Traps | -11 -10 -10 -9 -9 -8 -8 ------- Run | Yrd Mat Min Mat Min Mat Gar Traps Triggered 5 | . 1 . . . . 4 Indirectly . | . . . . . . . Trap Hack Attempts . | . . . . . . . Triggered . | . . . . . . . Disarmed . | . . . . . . . Reprogrammed . | . . . . . . . Reused . | . . . . . . . Traps Extracted . | . . . . . . . Installed . | . . . . . . . Triggered . | . . . . . . . Machines | -11 -10 -10 -9 -9 -8 -8 ---------- Run | Yrd Mat Min Mat Min Mat Gar Machines Disabled 5 | . . . 1 . 1 3 Max in Single Turn 2 | . . . 1 . 1 2 Garrison Relay 1 | . . . . . . 1 Phase Generator 1 | . . . . . . 1 Machines Repaired . | . . . . . . . Machines Dismantled . | . . . . . . . Machines Sabotaged . | . . . . . . . Overloaded Fab Kills . | . . . . . . . Hacking | -11 -10 -10 -9 -9 -8 -8 --------- Run | Yrd Mat Min Mat Min Mat Gar Machines Accessed 25 | . 4 . 4 1 13 3 Terminals 20 | . 4 . 3 1 9 3 Fabricators . | . . . . . . . Repair Stations . | . . . . . . . Recycling Units 3 | . . . 1 . 2 . Scanalyzers 1 | . . . . . 1 . Garrison Access 1 | . . . . . 1 . Total Hacks 97 | . 16 . 18 4 54 5 Successful 46 | . 7 . 11 2 25 1 Failed 48 | . 8 . 7 1 28 4 Catastrophic 5 | . 1 . 1 . 3 . Database Lockouts 3 | . 1 . . 1 1 . Manual 70 | . 14 . 17 3 36 . Terminals 88 | . 16 . 17 4 46 5 Fabricators . | . . . . . . . Repair Stations . | . . . . . . . Recycling Units 3 | . . . 1 . 2 . Scanalyzers 5 | . . . . . 5 . Garrison Access 1 | . . . . . 1 . Terminal Hacks 24 | . 4 . 5 2 12 1 Record 1 | . . . . 1 . . Part Schematic 2 | . . . . . 2 . Robot Analysis 9 | . 1 . 3 1 4 . Prototype ID Bank 3 | . 1 . . . 2 . Branch Access Points 1 | . . . 1 . . . Emergency Access Points 1 | . . . . . . 1 Terminal Index 1 | . 1 . . . . . Unreport Threat 4 | . 1 . . . 3 . Locate Traps 1 | . . . 1 . . . Recall Reinforcements 1 | . . . . . 1 . Fabricator Hacks . | . . . . . . . Repair Station Hacks . | . . . . . . . Recycling Unit Hacks . | . . . . . . . Scanalyzer 5 | . . . . . 5 . Insert Component 2 | . . . . . 2 . Analyze 3 | . . . . . 3 . Garrison Access Hacks 1 | . . . . . 1 . Unlock Access 1 | . . . . . 1 . Unauthorized Hacks 16 | . 3 . 6 . 7 . Terminals 13 | . 3 . 5 . 5 . Track 3 | . . . 2 . 1 . Assimilate 1 | . . . . . 1 . Botnet 6 | . 2 . 2 . 2 . Operators 3 | . 1 . 1 . 1 . Fabricators . | . . . . . . . Repair Stations . | . . . . . . . Recycling Units 3 | . . . 1 . 2 . Tunnel 3 | . . . 1 . 2 . Scanalyzers . | . . . . . . . Garrison Access . | . . . . . . . Data Cores Recovered . | . . . . . . . Used . | . . . . . . . Hacking Detections 20 | . 4 . 3 1 9 3 Full Trace Events 2 | . . . . . 1 1 Feedback Events . | . . . . . . . Feedback Blocked . | . . . . . . . Robot Schematics Acquired . | . . . . . . . Robots Built . | . . . . . . . Authchips . | . . . . . . . Time . | . . . . . . . Total Robot Build Rating . | . . . . . . . Part Schematics Acquired 4 | . . . . . 4 . Parts Built . | . . . . . . . Authchips . | . . . . . . . Time . | . . . . . . . Total Part Build Rating . | . . . . . . . Parts Repaired . | . . . . . . . Time . | . . . . . . . Parts Recycled . | . . . . . . . Recycled Matter . | . . . . . . . Retrieved Matter . | . . . . . . . Retrieved Components . | . . . . . . . Parts Scanalyzed 2 | . . . . . 2 . Part Schematics Acquired 2 | . . . . . 2 . Parts Damaged . | . . . . . . . Bothacking | -11 -10 -10 -9 -9 -8 -8 ------------ Run | Yrd Mat Min Mat Min Mat Gar Used RIF Installer . | . . . . . . . Robots Hacked . | . . . . . . . Non-combat . | . . . . . . . Combat . | . . . . . . . Robot Hacks Applied . | . . . . . . . Relay Couplers Released 6 | . . . . . . 6 Machine Destruction 3 | . . . . . . 3 Programmers 3 | . . . . . . 3 Fabnet Peak Effective % . | . . . . . . . Robots Rewired . | . . . . . . . Allies Hacked . | . . . . . . . Hacks Repelled . | . . . . . . . Allies | -11 -10 -10 -9 -9 -8 -8 -------- Run | Yrd Mat Min Mat Min Mat Gar Total Allies 6 | . . . . 3 1 2 Largest Group 3 | . . . . 3 3 2 Highest-Rated Group 59 | . . . . 40 40 59 Highest-Rated Ally 39 | . . . . 16 16 39 Total Orders 11 | . . . . . 4 7 STAY 6 | . . . . . 2 4 FOLLOW 5 | . . . . . 2 3 Ally Attacks 64 | . . . . . 29 35 Total Damage 801 | . . . . . 289 512 Kills 12 | . . . . . 3 9 Allies Corrupted . | . . . . . . . Allies Melted . | . . . . . . . Intel | -11 -10 -10 -9 -9 -8 -8 ------- Run | Yrd Mat Min Mat Min Mat Gar Robot Analysis Total 9 | . 1 . 3 1 4 . Derelict Logs Recovered 2 | . . 1 . 1 . . Drone Launches . | . . . . . . . Drone Recoveries . | . . . . . . . Exploration | -11 -10 -10 -9 -9 -8 -8 ------------- Run | Yrd Mat Min Mat Min Mat Gar Turns Passed 3868 | 52 531 228 621 299 846 1291 Spaces Moved 2486 | 39 436 170 353 246 547 695 Core 8 | 8 . . . . . . Treads 34 | . . 34 . . . . Legs . | . . . . . . . Wheels 2444 | 31 436 136 353 246 547 695 Hover . | . . . . . . . Flight . | . . . . . . . Fastest Speed 50 | 50 80 95 95 95 95 115 Average Speed 105 | 79 85 109 102 95 110 120 Slowest Speed 160 | 90 95 160 125 95 130 160 Overloaded Moves . | . . . . . . . Propulsion Burnouts . | . . . . . . . Robots Hopped . | . . . . . . . Cave-ins Triggered . | . . . . . . . Exploration Rate (%) 54 | 4 70 52 45 62 64 84 Regions Visited 6 Branch Regions 2 Pre-discovered Areas 4 | . . . 1 1 2 . Known Exits Taken 2 | . . . 1 . 1 . Unknown Exits Taken 4 | 1 1 1 . 1 . . Scrap Searched 1 | . . . . 1 . . Spaces Dug 57 | . . . 1 . 1 55 Terrain Destroyed 489 | . . 11 55 . 1 422 Melee 26 | . . . . . 1 25 Projectile 1 | . . . 1 . . . AOE 462 | . . 11 54 . . 397 Terrain Rammed . | . . . . . . . Walls Destroyed . | . . . . . . . Machines Disabled . | . . . . . . . Actions | -11 -10 -10 -9 -9 -8 -8 --------- Run | Yrd Mat Min Mat Min Mat Gar Total 3195 | 53 550 198 499 288 680 927 Wait 88 | . 35 . 13 15 5 20 Move 2480 | 38 435 169 352 245 546 695 Hop . | . . . . . . . Pick Up 77 | 6 15 4 18 6 19 9 Fast Attach 20 | 5 1 2 4 1 4 3 Attach 44 | 2 5 7 10 2 4 14 Detach 12 | . 2 4 3 . 1 2 Swap 110 | . 14 4 24 2 30 36 Drop 52 | . 13 1 14 4 17 3 Fire 264 | 2 30 7 61 13 53 98 Melee 34 | . . . . . 1 33 Ram . | . . . . . . . Kick . | . . . . . . . Crush . | . . . . . . . Escape Stasis 14 | . . . . . . 14 Rewire . | . . . . . . . Trap . | . . . . . . . Miscellaneous . | . . . . . . . Route ------- -11/Scrapyard -10/Materials (discovered 3 exits: *Mat x2 / [*Min]) -10/Mines -9/Materials (discovered 2 exits: *Min x2) -9/Mines -8/Materials (discovered 4 exits: *Fac x3 / Gar) -8/Garrison (discovered 3 exits: *Fac x3) History --------- Turn | Location | Event 2 | -11/Scrapyard | Met Revision 17 10 | -11/Scrapyard | Discovered new exit (range 16) 53 | -11/Scrapyard | Entered Materials 256 | -10/Materials | Central database locked down 305 | -10/Materials | Build established: Mutant 444 | -10/Materials | Discovered new exit (range 7) 550 | -10/Materials | Discovered new exit (range 15) 570 | -10/Materials | Discovered new exit (range 15) 584 | -10/Materials | Entered Mines 596 | -10/Mines | Met a Derelict bent on vengeance 661 | -10/Mines | Assembled infested the area 666 | -10/Mines | Assisted by a Guerilla fighting off Assembled 739 | -10/Mines | Lost 4 parts (2n2w) 802 | -10/Mines | Learned Materials interactive machine intel 806 | -10/Mines | Discovered new exit (range 6) 812 | -10/Mines | Entered Materials 812 | -9/Materials | Evolved 2 slots: Propulsion x1, Utility x1 813 | -9/Materials | Loaded intel: 18 interactive machine locations 1107 | -9/Materials | Build established: Scavenger-Mutant 1330 | -9/Materials | Lost 4 parts (2n1u1w) 1336 | -9/Materials | Destroyed 10 combat bots 1412 | -9/Materials | Identified exit to Mines 1433 | -9/Materials | Entered Mines 1444 | -9/Mines | Core integrity fell below 50% 1482 | -9/Mines | Learned Materials interactive machine intel 1483 | -9/Mines | Joined a pair of Derelicts in attacking an 0b10 outpost 1549 | -9/Mines | Assisted by bots powering up and referring to "LRC-V3" 1581 | -9/Mines | Central database locked down 1617 | -9/Mines | Learned location of Storage (-8) 1711 | -9/Mines | Discovered new exit (range 7) 1732 | -9/Mines | Entered Materials 1732 | -8/Materials | Accompanied by 3 allies 1732 | -8/Materials | Evolved 2 slots: Utility x1, Weapon x1 1733 | -8/Materials | Loaded intel: 19 interactive machine locations 2052 | -8/Materials | Discovered new exit (range 7) 2211 | -8/Materials | Discovered new exit (range 16) 2286 | -8/Materials | Build established: Gunner 2403 | -8/Materials | Discovered new exit (range 8) 2534 | -8/Materials | Central database locked down 2577 | -8/Materials | Identified exit to Garrison 2578 | -8/Materials | Entered Garrison 2578 | -8/Garrison | Accompanied by 1 ally 2676 | -8/Garrison | Lost 4 parts (2u2w) 2692 | -8/Garrison | Triggered checkpoint 2705 | -8/Garrison | Triggered checkpoint 2733 | -8/Garrison | Destroyed 7 combat bots 2826 | -8/Garrison | Phase Generator disabled 2913 | -8/Garrison | Triggered checkpoint 2921 | -8/Garrison | Triggered checkpoint 3017 | -8/Garrison | Discovered new exit (range 12) 3024 | -8/Garrison | Triggered checkpoint 3075 | -8/Garrison | Identified exit to Factory 3180 | -8/Garrison | Assembled breached garrison interior 3185 | -8/Garrison | Discovered exit to Factory (range 10) 3479 | -8/Garrison | Destroyed 27 combat bots 3512 | -8/Garrison | Discovered exit to Factory (range 9) 3676 | -8/Garrison | Rescued a captive Derelict 3679 | -8/Garrison | Rescued a captive Derelict 3869 | -8/Garrison | Self-destructed Last Messages --------------- 03838_ HV Slug penetrates Wall. 03838_ Beam Rifle destroyed. 03841_ as-98757 suffers critical hit (Destroy). 03841_ as-98757 destroyed. 03842_ as-74173 system corrupted by crushing effect. 03842_ as-74173 destroyed. 03842_ Acquired 13 matter. 03843_ HV Slug penetrates Wall. 03848_ as-76961 knocked back. 03850_ HV Slug penetrates Wall. 03850_ HV Slug penetrates Reinforced Barrier. 03850_ O1-K7W(b) system corrupted by crushing effect. 03852_ HV Slug penetrates Wall. 03852_ HV Slug penetrates Reinforced Barrier. 03854_ HV Slug penetrates Wall. 03854_ as-76961 system corrupted by crushing effect. 03854_ as-76961 knocked back. 03855_ System corrupted: Matter fused (-5). 03856_ HV Slug penetrates Reinforced Barrier. 03860_ Acquired 6 matter. Map ----- +----------------------------------------------------+ | ## ##???????# #??????????????????????????????? ?? | | ?# ########## #??????????????????????????????# #? | | ?# #??????????????????????????????# #? | | ?############ #??????????????????????????????# #? | | ????????????# #??????????????????????????????# ? | | ????????????# #??????????????????????????????# #? | | ????????????# #??????????????????????????????# #? | | ????????????# #??????????????????????????????# #? | | ????????????# #??????????????????????????????# #? | | ????????????# #????????????????????????????### ## | | ????????????# #??????????????????###???????# | | ????????????# #??????????????????# ??????? | | ????????????# #???????####???????# #???????# ### | | ????????????# #?????### #######?# #???????# ##? | | ????????????# #??? # # #*%% #?# #???????# T#? | | ????????????# #??# # # % ### ##??????# ##? | | ############# #### # = ^ ######## #?? | | ^^ ^^ ! #?? | | ^^ ^^ =#?? | | ###################### # #### =#########+### | | ????????????????????### # ## # ###?????# #!! | | ????????????????????#[ #!=#?????# | | ????????????????????# = b # =#?????##### | | ????????????????????#= h# %#?????????? | | ????????????????????# % # ##?????????? | | ??????????????????##### @ # # ###?????????? | | ??????????????????# # # # ###########?? | | ??????????????????## # ## # #?? | | ??????????????????# # a ##? | | ??????????????????## # ### #### ## | | ???????????????????# # ## ## ###?# #?# # | | ???????????????????### # ## #####???# ### # | | ?????????????????### # ######## #???# ## # | | ?????????????????# # a ## #???# ????# #### ### | | ????????????????## ## # #???# ????# % * | | ???????????????## # # ##??? ????# ####=#### | | ??????????????## # # # #??? ????# #??# #?? | | ??############### ## ## #????????# #??# #?? | | ??# # #????????# #??# #?? | | ??# # ##??####### #### #?? | | ??# #### ##### # #??# ## ^ #?? | | ??# #??# #???# # # #??# ## ######## ### | | ??# #??# #???# # # ##??# ## #?????# # # | | ??# #??# #???##### #??# ## ###???# | | ??# #??# #???????### # #??# ## ##### #### | | ??# #??# #?????????## ##??# [ * #??? | | ??# #??# #?????????### #??# ### =### ###??? | | ??# #??# #?????????## ##??# ## ###?# #????? | | ??# #### #????????## # ##### # ????# #??### | | ??# ## #????????# # # ###????# #??# | +----------------------------------------------------+ Best States ------------- Heat Dissipation 59 Energy Generation 23 Energy Capacity 280 Matter Stores 300 Matter Capacity 300 Sight Range 16 Robot Scan Range 15 Terrain Scan Density 10 Jamming Range 12 Armor Coverage 225 Evasion (%) 50 Targeting Accuracy 5 Recoil Reduction 2 Salvage Targeting 1 Defensive Hacking 10 Item Schematics ----------------- Salvage Targeting Computer | -8/Materials | Scanalyzed Imp. Signal Interpreter | -8/Materials | Scanalyzed Lrn. Tractor Beam | -8/Materials | Hacked Imp. Sensor Array | -8/Materials | Hacked Robot Schematics ------------------ None Fabricated ------------ Nothing Alien Tech Used ----------------- None Achievements -------------- None Challenges ------------ None Game ------ Seed MassActuatorUnit Manual? 0 Play Time 01:05:23 Cumulative 1048.9 hours Start 2024.03.07 @ 19:56:57 End 2024.03.07 @ 22:22:11 Sessions 3 Manual Loads 0 Difficulty Rogue Special Mode None Game No. 528 Rogue 401 Adventurer 125 Explorer 2 Win Type - Total 125 Types 98/9/8/3/3/0/0/2/2 Lore% 82 Gallery% 90 Achievement% 84 Wizard Run 0 Options --------- Layout 0 ASCII 0 Keyboard 1 Movement Numpad Keybinds 0 Fullscreen 1 Font 36/Terminus++ Map View 76x50 Zoom Use 0% Tactical HUD 1 Map Filters NONE Filters NONE Steam 1 RUN: 71b9285e-66da-43c4-87f9-f02cac32ea16